fUSD/lending_fUSD_20250103
["ID","MTS","AMOUNT","RATE_DAILY","PERIOD"]
[347513853,1735897850724,-1532.48,9.269e-05,2]
[347513854,1735897850734,-500.0,9.269e-05,2]
[347513855,1735897850743,-707.02,9.269e-05,2]
[347513856,1735897850753,-1370.42,9.269e-05,2]
[347513857,1735897850762,-500.0,9.269e-05,2]
[347513858,1735897850772,-1535.79,9.269e-05,2]
[347513859,1735897850782,-1721.92,9.269e-05,2]
[347513860,1735897850791,-528.98,9.269e-05,2]
[347513861,1735897850801,-679.08,9.269e-05,2]
[347513862,1735897850810,-500.0,9.269e-05,2]
[347513863,1735897850819,-989.49,9.269e-05,2]
[347513864,1735897850829,-500.0,9.269e-05,2]
[347513865,1735897850839,-1073.69,9.269e-05,2]
[347513866,1735897850849,-1815.73,9.269e-05,2]
[347513867,1735897850858,-3723.24,9.269e-05,2]
[347513868,1735897850868,-1680.94,9.269e-05,2]
[347513869,1735897850878,-500.0,9.269e-05,2]
[347513870,1735897850887,-500.0,9.269e-05,2]
[347513871,1735897850897,-500.0,9.269e-05,2]
[347513872,1735897850907,-8969.39,9.269e-05,2]
[347513873,1735897850916,-500.0,9.269e-05,2]
[347513874,1735897850926,-5534.56,9.269e-05,2]
[347513875,1735897850935,-500.0,9.269e-05,2]
[347513876,1735897850945,-500.0,9.269e-05,2]
[347513877,1735897850955,-1056.25,9.269e-05,2]
[347513878,1735897850964,-2293.72,9.269e-05,2]
[347513879,1735897850974,-1747.81,9.269e-05,2]
[347513880,1735897850985,-692.55,9.269e-05,2]
[347513881,1735897850995,-500.0,9.269e-05,2]
[347513882,1735897851004,-500.0,9.269e-05,2]
[347513883,1735897851014,-1301.27,9.269e-05,2]
[347513884,1735897851023,-500.0,9.269e-05,2]
[347513885,1735897851033,-622.98,9.269e-05,2]
[347513886,1735897851043,-500.0,9.269e-05,2]
[347513887,1735897851053,-500.0,9.269e-05,2]
[347513888,1735897851063,-500.0,9.269e-05,2]
[347513889,1735897851073,-500.0,9.269e-05,2]
[347513890,1735897851082,-1719.05,9.269e-05,2]
[347513891,1735897851092,-2409.19,9.269e-05,2]
[347513892,1735897851102,-500.0,9.269e-05,2]
[347513893,1735897851114,-1613.43,9.269e-05,2]
[347513894,1735897851124,-5346.46,9.269e-05,2]
[347513895,1735897851134,-1043.6,9.269e-05,2]
[347513896,1735897851144,-638.98820433,9.269e-05,2]
[347513897,1735897851154,-5392.37,9.269e-05,2]
[347513898,1735897851163,-1056.0,9.269e-05,2]
[347513899,1735897851173,-500.0,9.269e-05,2]
[347513900,1735897851183,-720.61,9.269e-05,2]
[347513901,1735897851192,-392.19398374,9.269e-05,2]
[347513902,1735897851203,-1689.36,9.269e-05,2]
[347513903,1735897851216,-502.98,9.269e-05,2]
[347513904,1735897851227,-3231.71,9.269e-05,2]
[347513905,1735897851237,-500.0,9.269e-05,2]
[347513906,1735897851246,-2640.51,9.269e-05,2]
[347513907,1735897851256,-500.0,9.269e-05,2]
[347513908,1735897851266,-2916.4,9.269e-05,2]
[347513909,1735897851275,-500.0,9.269e-05,2]
[347513910,1735897851284,-10042.83,9.269e-05,2]
[347513911,1735897851293,-500.0,9.269e-05,2]
[347513912,1735897851303,-6486.57,9.269e-05,2]
[347513913,1735897851313,-3653.81,9.269e-05,2]
[347513914,1735897851323,-837.45,9.269e-05,2]
[347513915,1735897851332,-1654.24,9.269e-05,2]
[347513916,1735897851342,-514.07,9.269e-05,2]
[347513917,1735897851352,-500.0,9.269e-05,2]
[347513918,1735897851362,-500.0,9.269e-05,2]
[347513919,1735897851371,-500.0,9.269e-05,2]
[347513920,1735897851381,-500.0,9.269e-05,2]
[347513921,1735897851391,-500.0,9.269e-05,2]
[347513922,1735897851401,-20836.83,9.269e-05,2]
[347513923,1735897851411,-1214.98,9.269e-05,2]
[347513924,1735897851420,-901.1,9.269e-05,2]
[347513925,1735897851430,-5576.98,9.269e-05,2]
[347513926,1735897851440,-1779.41,9.269e-05,2]
[347513927,1735897851449,-599.04,9.269e-05,2]
[347513928,1735897851459,-509.47,9.269e-05,2]
[347513929,1735897851469,-500.0,9.269e-05,2]
[347513930,1735897851479,-506.20397142,9.269e-05,2]
[347513931,1735897851490,-500.0,9.269e-05,2]
[347513932,1735897851499,-4631.68,9.269e-05,2]
[347513933,1735897851509,-1571.72,9.269e-05,2]
[347513934,1735897851519,-500.0,9.269e-05,2]
[347513935,1735897851528,-923.52,9.269e-05,2]
[347513936,1735897851538,-2579.64,9.269e-05,2]
[347513937,1735897851548,-500.0,9.269e-05,2]
[347513938,1735897851558,-500.0,9.269e-05,2]
[347513939,1735897851569,-500.0,9.269e-05,2]
[347513940,1735897851579,-329.36086463,9.269e-05,2]
[347513941,1735897851589,-500.0,9.269e-05,2]
[347513942,1735897851599,-3175.84,9.269e-05,2]
[347513943,1735897851609,-1670.3,9.269e-05,2]
[347513944,1735897851619,-500.0,9.269e-05,2]
[347513945,1735897851629,-3744.86,9.269e-05,2]
[347513946,1735897851639,-4731.96,9.269e-05,2]
[347513947,1735897851649,-2534.3,9.269e-05,2]
[347513948,1735897851658,-500.0,9.269e-05,2]
[347513949,1735897851668,-4191.71,9.269e-05,2]
[347513950,1735897851678,-3136.65,9.269e-05,2]
[347513951,1735897851688,-964.0,9.269e-05,2]
[347513952,1735897851698,-500.0,9.269e-05,2]
[347513953,1735897851708,-500.0,9.269e-05,2]
[347513954,1735897851717,-2120.57,9.269e-05,2]
[347513955,1735897851727,-500.0,9.269e-05,2]
[347513956,1735897851739,-16903.84,9.269e-05,2]
[347513957,1735897851749,-500.0,9.269e-05,2]
[347513958,1735897851758,-1132.66,9.269e-05,2]
[347513959,1735897851769,-500.0,9.269e-05,2]
[347513960,1735897851779,-500.0,9.269e-05,2]
[347513961,1735897851788,-597.59,9.269e-05,2]
[347513962,1735897851798,-500.0,9.269e-05,2]
[347513963,1735897851808,-1972.25,9.269e-05,2]
[347513964,1735897851818,-500.0,9.269e-05,2]
[347513965,1735897851827,-8610.39,9.269e-05,2]
[347513966,1735897851837,-2505.72,9.269e-05,2]
[347513967,1735897851847,-500.0,9.269e-05,2]
[347513968,1735897851857,-1318.62,9.269e-05,2]
[347513969,1735897851866,-7147.39,9.269e-05,2]
[347513970,1735897851876,-500.0,9.269e-05,2]
[347513971,1735897851885,-500.0,9.269e-05,2]
[347513972,1735897851895,-500.0,9.269e-05,2]
[347513973,1735897851905,-153.38865628,9.269e-05,2]
[347513974,1735897851915,-500.0,9.269e-05,2]
[347513975,1735897851924,-500.0,9.269e-05,2]
[347513976,1735897851934,-500.0,9.269e-05,2]
[347513977,1735897851943,-500.0,9.269e-05,2]
[347513978,1735897851953,-1025.32,9.269e-05,2]
[347513979,1735897851963,-1601.01,9.269e-05,2]
[347513980,1735897851972,-500.0,9.269e-05,2]
[347513981,1735897851983,-1885.85,9.269e-05,2]
[347513982,1735897851993,-1196.97,9.269e-05,2]
[347513983,1735897852003,-14332.55,9.269e-05,2]
[347513984,1735897852013,-845.54,9.269e-05,2]
[347513985,1735897852023,-2689.77,9.269e-05,2]
[347513986,1735897852032,-846.25,9.269e-05,2]
[347513987,1735897852042,-650.34,9.269e-05,2]
[347513988,1735897852052,-2181.05,9.269e-05,2]
[347513989,1735897852062,-2062.98,9.269e-05,2]
[347513990,1735897852071,-500.0,9.269e-05,2]
[347513991,1735897852081,-1849.13,9.269e-05,2]
[347513992,1735897852090,-1593.95,9.269e-05,2]
[347513993,1735897852101,-501.82926816,9.269e-05,2]
[347513994,1735897852114,-2183.67,9.269e-05,2]
[347513995,1735897852126,-500.0,9.269e-05,2]
[347513996,1735897852136,-500.0,9.269e-05,2]
[347513997,1735897852146,-500.0,9.269e-05,2]
[347513998,1735897852156,-7032.61,9.269e-05,2]
[347513999,1735897852166,-3652.45,9.269e-05,2]
[347514000,1735897852176,-500.0,9.269e-05,2]
[347514001,1735897852186,-500.0,9.269e-05,2]
[347514002,1735897852196,-500.0,9.269e-05,2]
[347514003,1735897852206,-591.44723322,9.269e-05,2]
[347514004,1735897852216,-500.0,9.269e-05,2]
[347514005,1735897852225,-500.0,9.269e-05,2]
[347514006,1735897852238,-500.0,9.269e-05,2]
[347514007,1735897852250,-2053.88,9.269e-05,2]
[347514008,1735897852260,-500.0,9.269e-05,2]
[347514009,1735897852270,-500.0,9.269e-05,2]
[347514010,1735897852282,-500.0,9.269e-05,2]
[347514011,1735897852292,-500.0,9.269e-05,2]
[347514012,1735897852302,-1293.06,9.269e-05,2]
[347514013,1735897852313,-2832.23,9.269e-05,2]
[347514014,1735897852323,-500.0,9.269e-05,2]
[347514015,1735897852333,-2692.94,9.269e-05,2]
[347514016,1735897852342,-500.0,9.269e-05,2]
[347514017,1735897852353,-2978.04,9.269e-05,2]
[347514018,1735897852363,-500.0,9.269e-05,2]
[347514019,1735897852373,-500.0,9.269e-05,2]
[347514020,1735897852383,-3276.01,9.269e-05,2]
[347514021,1735897852394,-500.0,9.269e-05,2]
[347514022,1735897852404,-500.0,9.269e-05,2]
[347514023,1735897852413,-500.0,9.269e-05,2]
[347514024,1735897852423,-500.0,9.269e-05,2]
[347514025,1735897852433,-8895.65,9.269e-05,2]
[347514026,1735897852443,-312.02802649,9.269e-05,2]
[347514027,1735897852452,-500.0,9.269e-05,2]
[347514028,1735897852462,-500.0,9.269e-05,2]
[347514029,1735897852472,-500.0,9.269e-05,2]
[347514030,1735897852482,-585.02,9.269e-05,2]
[347514031,1735897852493,-502.72181078,9.269e-05,2]
[347514032,1735897852503,-6740.0,9.269e-05,2]
[347514033,1735897852512,-500.0,9.269e-05,2]
[347514034,1735897852522,-500.0,9.269e-05,2]
[347514035,1735897852532,-967.77,9.27e-05,2]
[347514036,1735897852541,-500.0,9.27e-05,2]
[347514037,1735897852551,-1175.99,9.27e-05,2]
[347514038,1735897852561,-612.29,9.27e-05,2]
[347514039,1735897852571,-538.24,9.27e-05,2]
[347514040,1735897852581,-1050.32,9.27e-05,2]
[347514041,1735897852590,-651.1,9.27e-05,2]
[347514042,1735897852600,-500.0,9.27e-05,2]
[347514043,1735897852610,-569.39,9.27e-05,2]
[347514044,1735897852853,-500.0,9.27e-05,2]
[347514045,1735897852864,-659.75,9.27e-05,2]
[347514046,1735897852873,-941.28,9.27e-05,2]
[347514047,1735897852883,-500.0,9.27e-05,2]
[347514048,1735897852892,-500.0,9.27e-05,2]
[347514049,1735897852901,-500.0,9.27e-05,2]
[347514050,1735897852911,-500.0,9.27e-05,2]
[347514051,1735897852921,-500.0,9.27e-05,2]
[347514052,1735897852930,-500.0,9.27e-05,2]
[347514053,1735897852940,-500.0,9.27e-05,2]
[347514054,1735897852950,-1231.37,9.27e-05,2]
[347514055,1735897852959,-1161.25,9.27e-05,2]
[347514056,1735897852970,-986.86,9.27e-05,2]
[347514057,1735897852979,-789.22,9.27e-05,2]
[347514058,1735897852990,-500.0,9.27e-05,2]
[347514059,1735897853000,-500.0,9.27e-05,2]
[347514060,1735897853010,-500.0,9.27e-05,2]
[347514061,1735897853020,-500.0,9.27e-05,2]
[347514062,1735897853030,-500.0,9.27e-05,2]
[347514063,1735897853039,-500.0,9.27e-05,2]
[347514064,1735897853048,-929.17,9.27e-05,2]
[347514065,1735897853058,-907.66,9.27e-05,2]
[347514066,1735897853068,-500.0,9.27e-05,2]
[347514067,1735897853077,-500.0,9.27e-05,2]
[347514068,1735897853086,-500.0,9.27e-05,2]
[347514069,1735897853096,-801.09,9.27e-05,2]
[347514070,1735897853105,-1009.45,9.27e-05,2]
[347514071,1735897853121,-500.0,9.27e-05,2]
[347514072,1735897853130,-500.0,9.27e-05,2]
[347514073,1735897853139,-810.33,9.27e-05,2]
[347514074,1735897853149,-500.0,9.27e-05,2]
[347514075,1735897853159,-500.0,9.27e-05,2]
[347514076,1735897853168,-975.92,9.27e-05,2]
[347514077,1735897853177,-500.0,9.27e-05,2]
[347514078,1735897853187,-570.71,9.27e-05,2]
[347514079,1735897853196,-500.0,9.27e-05,2]
[347514080,1735897853206,-500.0,9.27e-05,2]
[347514081,1735897853215,-500.0,9.27e-05,2]
[347514082,1735897853224,-621.59,9.27e-05,2]
[347514083,1735897853234,-1955.22,9.27e-05,2]
[347514084,1735897853244,-595.80232169,9.27e-05,2]
[347514085,1735897853253,-953.72,9.27e-05,2]
[347514086,1735897853263,-500.0,9.27e-05,2]
[347514087,1735897853272,-1214.91,9.27e-05,2]
[347514088,1735897853281,-739.81,9.27e-05,2]
[347514089,1735897853291,-520.06,9.27e-05,2]
[347514090,1735897853300,-500.0,9.27e-05,2]
[347514091,1735897853310,-500.0,9.27e-05,2]
[347514092,1735897853319,-608.1,9.27e-05,2]
[347514093,1735897853329,-500.0,9.27e-05,2]
[347514094,1735897853338,-500.0,9.27e-05,2]
[347514095,1735897853347,-500.0,9.27e-05,2]
[347514096,1735897853357,-641.78490035,9.27e-05,2]
[347514097,1735897853366,-500.0,9.27e-05,2]
[347514098,1735897853375,-500.0,9.27e-05,2]
[347514099,1735897853385,-789.87,9.27e-05,2]
[347514100,1735897853395,-500.0,9.27e-05,2]
[347514101,1735897853404,-567.9,9.27e-05,2]
[347514102,1735897853414,-527.81,9.27e-05,2]
[347514103,1735897853423,-500.0,9.27e-05,2]
[347514104,1735897853432,-500.0,9.27e-05,2]
[347514105,1735897853441,-500.0,9.27e-05,2]
[347514106,1735897853451,-500.0,9.27e-05,2]
[347514107,1735897853460,-500.0,9.27e-05,2]
[347514108,1735897853469,-500.0,9.27e-05,2]
[347514109,1735897853478,-500.0,9.27e-05,2]
[347514110,1735897853488,-785.44,9.27e-05,2]
[347514111,1735897853498,-500.0,9.27e-05,2]
[347514112,1735897853508,-500.0,9.27e-05,2]
[347514113,1735897853517,-1784.08,9.27e-05,2]
[347514114,1735897853526,-1381.03,9.27e-05,2]
[347514115,1735897853535,-500.0,9.27e-05,2]
[347514116,1735897853544,-511.99,9.27e-05,2]
[347514117,1735897853553,-1281.28,9.27e-05,2]
[347514118,1735897853562,-1047.79,9.27e-05,2]
[347514119,1735897853571,-1009.71,9.27e-05,2]
[347514120,1735897853581,-500.0,9.27e-05,2]
[347514121,1735897853590,-991.95,9.27e-05,2]
[347514122,1735897853599,-500.0,9.27e-05,2]
[347514123,1735897853609,-500.0,9.27e-05,2]
[347514124,1735897853618,-1389.25,9.27e-05,2]
[347514125,1735897853627,-500.0,9.27e-05,2]
[347514126,1735897853637,-500.0,9.27e-05,2]
[347514127,1735897853647,-1044.06,9.27e-05,2]
[347514128,1735897853656,-500.0,9.27e-05,2]
[347514129,1735897853665,-500.0,9.27e-05,2]
[347514130,1735897853674,-660.2,9.27e-05,2]
[347514131,1735897853684,-500.0,9.27e-05,2]
[347514132,1735897853693,-500.0,9.27e-05,2]
[347514133,1735897853702,-560.51,9.27e-05,2]
[347514134,1735897853711,-573.27,9.27e-05,2]
[347514135,1735897853720,-500.0,9.27e-05,2]
[347514136,1735897853730,-500.0,9.27e-05,2]
[347514137,1735897853740,-500.0,9.27e-05,2]
[347514138,1735897853750,-500.0,9.27e-05,2]
[347514139,1735897853759,-500.0,9.27e-05,2]
[347514140,1735897853769,-500.0,9.27e-05,2]
[347514141,1735897853779,-916.05,9.27e-05,2]
[347514142,1735897853789,-581.1,9.27e-05,2]
[347514143,1735897853799,-500.0,9.27e-05,2]
[347514144,1735897853808,-500.0,9.27e-05,2]
[347514145,1735897853817,-500.0,9.27e-05,2]
[347514146,1735897853827,-500.0,9.27e-05,2]
[347514147,1735897853836,-642.05,9.27e-05,2]
[347514148,1735897853845,-500.0,9.27e-05,2]
[347514149,1735897853854,-941.75,9.27e-05,2]
[347514150,1735897853864,-500.0,9.27e-05,2]
[347514151,1735897853874,-500.0,9.27e-05,2]
[347514152,1735897853883,-760.26,9.27e-05,2]
[347514153,1735897853892,-500.0,9.27e-05,2]
[347514154,1735897853901,-2475.72,9.27e-05,2]
[347514155,1735897853911,-3559.19,9.27e-05,2]
[347514156,1735897853920,-980.21,9.27e-05,2]
[347514157,1735897853929,-501.06662374,9.27e-05,2]
[347514158,1735897853939,-500.0,9.27e-05,2]
[347514159,1735897853949,-760.76,9.27e-05,2]
[347514160,1735897853958,-3795.77,9.27e-05,2]
[347514161,1735897853968,-628.04,9.27e-05,2]
[347514162,1735897853978,-500.0,9.27e-05,2]
[347514163,1735897853988,-500.0,9.27e-05,2]
[347514164,1735897853998,-1501.55,9.27e-05,2]
[347514165,1735897854008,-500.0,9.27e-05,2]
[347514166,1735897854018,-500.0,9.27e-05,2]
[347514167,1735897854027,-500.0,9.27e-05,2]
[347514168,1735897854037,-500.0,9.27e-05,2]
[347514169,1735897854047,-546.56,9.27e-05,2]
[347514170,1735897854057,-500.0,9.27e-05,2]
[347514171,1735897854068,-916.42,9.27e-05,2]
[347514172,1735897854077,-550.22,9.27e-05,2]
[347514173,1735897854088,-500.0,9.27e-05,2]
[347514174,1735897854098,-4202.96,9.27e-05,2]
[347514175,1735897854108,-1008.86,9.27e-05,2]
[347514176,1735897854121,-500.0,9.27e-05,2]
[347514177,1735897854131,-500.0,9.27e-05,2]
[347514178,1735897854140,-500.0,9.27e-05,2]
[347514179,1735897854151,-500.0,9.27e-05,2]
[347514180,1735897854162,-500.0,9.27e-05,2]
[347514181,1735897854173,-500.0,9.27e-05,2]
[347514182,1735897854183,-3233.0,9.27e-05,2]
[347514183,1735897854193,-1717.73,9.27e-05,2]
[347514184,1735897854203,-1357.77,9.27e-05,2]
[347514185,1735897854212,-500.0,9.27e-05,2]
[347514186,1735897854222,-1585.57,9.27e-05,2]
[347514187,1735897854231,-500.0,9.27e-05,2]
[347514188,1735897854241,-500.0,9.27e-05,2]
[347514189,1735897854251,-500.0,9.27e-05,2]
[347514190,1735897854260,-500.0,9.27e-05,2]
[347514191,1735897854270,-1239.14,9.27e-05,2]
[347514192,1735897854279,-655.98,9.27e-05,2]
[347514193,1735897854289,-500.0,9.27e-05,2]
[347514194,1735897854299,-500.0,9.27e-05,2]
[347514195,1735897854308,-500.0,9.27e-05,2]
[347514196,1735897854317,-500.0,9.27e-05,2]
[347514197,1735897854327,-2312.28,9.27e-05,2]
[347514198,1735897854336,-1528.45,9.27e-05,2]
[347514199,1735897854345,-500.0,9.27e-05,2]
[347514200,1735897854355,-500.0,9.27e-05,2]
[347514201,1735897854364,-500.0,9.27e-05,2]
[347514202,1735897854373,-500.0,9.27e-05,2]
[347514203,1735897854382,-500.0,9.27e-05,2]
[347514204,1735897854392,-500.0,9.27e-05,2]
[347514205,1735897854401,-2824.33,9.27e-05,2]
[347514206,1735897854410,-500.0,9.27e-05,2]
[347514207,1735897854420,-500.0,9.27e-05,2]
[347514208,1735897854429,-2525.98,9.27e-05,2]
[347514209,1735897854439,-500.0,9.27e-05,2]
[347514210,1735897854448,-500.0,9.27e-05,2]
[347514211,1735897854459,-2084.35,9.27e-05,2]
[347514212,1735897854469,-500.0,9.27e-05,2]
[347514213,1735897854478,-500.0,9.27e-05,2]
[347514214,1735897854488,-954.17,9.27e-05,2]
[347514215,1735897854497,-1132.23,9.27e-05,2]
[347514216,1735897854506,-880.37,9.27e-05,2]
[347514217,1735897854515,-500.0,9.27e-05,2]
[347514218,1735897854525,-500.0,9.27e-05,2]
[347514219,1735897854534,-500.0,9.27e-05,2]
[347514220,1735897854543,-500.0,9.27e-05,2]
[347514221,1735897854552,-502.88005493,9.27e-05,2]
[347514222,1735897854561,-501.18787739,9.27e-05,2]
[347514223,1735897854571,-4038.76,9.27e-05,2]
[347514224,1735897854580,-500.0,9.27e-05,2]
[347514225,1735897854589,-500.0,9.27e-05,2]
[347514226,1735897854599,-500.0,9.27e-05,2]
[347514227,1735897854608,-500.0,9.27e-05,2]
[347514228,1735897854617,-500.0,9.27e-05,2]
[347514229,1735897854627,-500.0,9.27e-05,2]
[347514230,1735897854635,-500.0,9.27e-05,2]
[347514231,1735897854644,-500.0,9.27e-05,2]
[347514232,1735897854654,-814.41,9.27e-05,2]
[347514233,1735897854663,-1787.49,9.27e-05,2]
[347514234,1735897854672,-1732.65,9.27e-05,2]
[347514235,1735897854681,-500.0,9.27e-05,2]
[347514236,1735897854690,-500.0,9.27e-05,2]
[347514237,1735897854699,-500.0,9.27e-05,2]
[347514238,1735897854708,-500.0,9.27e-05,2]
[347514239,1735897854717,-2592.75,9.27e-05,2]
[347514240,1735897854726,-500.0,9.27e-05,2]
[347514241,1735897854737,-500.0,9.27e-05,2]
[347514242,1735897854747,-500.0,9.27e-05,2]
[347514243,1735897854756,-3162.92,9.27e-05,2]
[347514244,1735897854765,-2693.91,9.27e-05,2]
[347514245,1735897854779,-500.0,9.27e-05,2]
[347514246,1735897854788,-649.07,9.27e-05,2]
[347514247,1735897854797,-500.0,9.27e-05,2]
[347514248,1735897854807,-500.0,9.27e-05,2]
[347514249,1735897854816,-1654.97,9.27e-05,2]
[347514250,1735897854825,-500.0,9.27e-05,2]
[347514251,1735897854835,-647.68,9.27e-05,2]
[347514252,1735897854844,-1853.12,9.27e-05,2]
[347514253,1735897854854,-516.94,9.27e-05,2]
[347514254,1735897854863,-500.0,9.27e-05,2]
[347514255,1735897854873,-500.0,9.27e-05,2]
[347514256,1735897854883,-500.0,9.27e-05,2]
[347514257,1735897854893,-2434.91,9.27e-05,2]
[347514258,1735897854902,-626.86,9.27e-05,2]
[347514259,1735897854911,-978.01,9.27e-05,2]
[347514260,1735897854921,-2410.9,9.27e-05,2]
[347514261,1735897854930,-500.0,9.27e-05,2]
[347514262,1735897854940,-3243.72,9.27e-05,2]
[347514263,1735897854950,-500.0,9.27e-05,2]
[347514264,1735897854959,-1863.54,9.27e-05,2]
[347514265,1735897854969,-500.0,9.27e-05,2]
[347514266,1735897854979,-500.0,9.27e-05,2]
[347514267,1735897854990,-500.0,9.27e-05,2]
[347514268,1735897855000,-500.0,9.27e-05,2]
[347514269,1735897855011,-592.32,9.27e-05,2]
[347514270,1735897855021,-500.0,9.27e-05,2]
[347514271,1735897855031,-500.0,9.27e-05,2]
[347514272,1735897855041,-1765.19,9.27e-05,2]
[347514273,1735897855050,-1502.86,9.27e-05,2]
[347514274,1735897855060,-503.16,9.27e-05,2]
[347514275,1735897855070,-1225.0,9.27e-05,2]
[347514276,1735897855080,-2621.5,9.27e-05,2]
[347514277,1735897855089,-500.0,9.27e-05,2]
[347514278,1735897855098,-280.5757634,9.27e-05,2]
[347514279,1735897855109,-500.0,9.27e-05,2]
[347514280,1735897855120,-702.86,9.27e-05,2]
[347514281,1735897855129,-1739.48,9.27e-05,2]
[347514282,1735897855138,-500.0,9.27e-05,2]
[347514283,1735897855148,-500.0,9.27e-05,2]
[347514284,1735897855158,-552.56,9.27e-05,2]
[347514285,1735897855167,-500.0,9.27e-05,2]
[347514286,1735897855177,-500.0,9.27e-05,2]
[347514287,1735897855186,-500.0,9.27e-05,2]
[347514288,1735897855195,-500.0,9.27e-05,2]
[347514289,1735897855205,-1174.26,9.27e-05,2]
[347514290,1735897855214,-500.0,9.27e-05,2]
[347514291,1735897855223,-500.0,9.27e-05,2]
[347514292,1735897855232,-696.94,9.27e-05,2]
[347514293,1735897855242,-500.0,9.27e-05,2]
[347514294,1735897855251,-1874.34,9.27e-05,2]
[347514295,1735897855261,-688.55,9.27e-05,2]
[347514296,1735897855270,-500.0,9.27e-05,2]
[347514297,1735897855280,-1022.92,9.27e-05,2]
[347514298,1735897855289,-2322.75,9.27e-05,2]
[347514299,1735897855299,-500.0,9.27e-05,2]
[347514300,1735897855308,-547.58,9.27e-05,2]
[347514301,1735897855317,-500.0,9.27e-05,2]
[347514302,1735897855327,-1619.51,9.27e-05,2]
[347514303,1735897855336,-500.0,9.27e-05,2]
[347514304,1735897855345,-987.33,9.27e-05,2]
[347514305,1735897855354,-1763.31,9.27e-05,2]
[347514306,1735897855364,-751.5,9.27e-05,2]
[347514307,1735897855373,-500.0,9.27e-05,2]
[347514308,1735897855383,-1526.8,9.27e-05,2]
[347514309,1735897855392,-500.0,9.27e-05,2]
[347514310,1735897855401,-948.81,9.27e-05,2]
[347514311,1735897855410,-500.0,9.27e-05,2]
[347514312,1735897855419,-2135.92,9.27e-05,2]
[347514313,1735897855428,-994.25,9.27e-05,2]
[347514314,1735897855438,-500.0,9.27e-05,2]
[347514315,1735897855447,-500.0,9.27e-05,2]
[347514316,1735897855456,-3704.18,9.27e-05,2]
[347514317,1735897855466,-500.0,9.27e-05,2]
[347514318,1735897855475,-825.45,9.27e-05,2]
[347514319,1735897855485,-889.94,9.27e-05,2]
[347514320,1735897855494,-500.0,9.27e-05,2]
[347514321,1735897855503,-1924.06,9.27e-05,2]
[347514322,1735897855512,-733.19,9.27e-05,2]
[347514323,1735897855521,-500.0,9.27e-05,2]
[347514324,1735897855531,-1398.87,9.27e-05,2]
[347514325,1735897855540,-500.0,9.27e-05,2]
[347514326,1735897855549,-1059.59,9.27e-05,2]
[347514327,1735897855558,-500.0,9.27e-05,2]
[347514328,1735897855567,-3272.27,9.27e-05,2]
[347514329,1735897855576,-1417.18,9.27e-05,2]
[347514330,1735897855585,-500.0,9.27e-05,2]
[347514331,1735897855594,-500.0,9.27e-05,2]
[347514332,1735897855603,-3585.77,9.27e-05,2]
[347514333,1735897855611,-727.59,9.27e-05,2]
[347514334,1735897855620,-500.0,9.27e-05,2]
[347514335,1735897855630,-2066.79,9.27e-05,2]
[347514336,1735897855639,-500.0,9.27e-05,2]
[347514337,1735897855648,-500.0,9.27e-05,2]
[347514338,1735897855657,-501.74482879,9.27e-05,2]
[347514339,1735897855666,-500.0,9.27e-05,2]
[347514340,1735897855675,-500.0,9.27e-05,2]
[347514341,1735897855684,-1809.59,9.27e-05,2]
[347514342,1735897855693,-500.0,9.27e-05,2]
[347514343,1735897855702,-500.0,9.27e-05,2]
[347514344,1735897855712,-500.0,9.27e-05,2]
[347514345,1735897855721,-500.0,9.27e-05,2]
[347514346,1735897855730,-500.0,9.27e-05,2]
[347514347,1735897855740,-500.0,9.27e-05,2]
[347514348,1735897855749,-1799.09,9.27e-05,2]
[347514349,1735897855758,-3207.79,9.27e-05,2]
[347514350,1735897855767,-500.0,9.27e-05,2]
[347514351,1735897855777,-583.31,9.27e-05,2]
[347514352,1735897855785,-500.0,9.27e-05,2]